[Event "44th Chess Olympiad Open 2022"]
[Site "Chennai"]
[Date "2022.08.09"]
[Round "11.2"]
[White "Vallejo Pons, Francisco"]
[Black "Melkumyan, Hrant"]
[Result "1/2-1/2"]
[ECO "B12"]
[WhiteElo "2702"]
[BlackElo "2634"]
[Annotator "TA"]
[PlyCount "87"]
[EventDate "2022.07.29"]
[EventType "team-tourn"]
[EventCountry "IND"]
[SourceTitle "playchess.com"]
[Source "ChessBase"]
[SourceQuality "1"]
[WhiteTeam "Spain"]
[BlackTeam "Armenia"]
[WhiteTeamCountry "ESP"]
[BlackTeamCountry "ARM"]
[TimeControl "40/5400+30:1800+30"]

{[%evp 9,87,0,0,0,0,0,0,0,0,0,0,0,22,3,22,16,18,12,15,0,15,11,20,21,15,14,34,26,33,33,27,0,0,0,25,16,26,20,15,11,10,15,14,8,16,22,53,0,52,32,74,66,67,67,73,69,75,47,56,12,25,-12,-8,-8,-8,-2,0,0,0,0,0,0,0,0,0,0,0,0,0,0]} 1. e4 {[%emt 0:00:10]} c6 {[%emt 0:00:10]} 2. d4 {[%emt 0:01:33]} d5 {[%emt 0:00:10]} 3. f3 {[%emt 0:00:04]} e6 {[%emt 0:00:37]} 4. Nc3 {[%emt 0:01:31]} Bb4 {[%emt 0:00:17]} 5. Bd2 {[%emt 0:00:31]} Ne7 {[%emt 0:00:23]} 6. a3 {[%emt 0:00:22] B12: Caro-Kann: Advance Variation.} Ba5 {[%emt 0:08:00]} 7. Bd3 {[%emt 0:02:07]} Nd7 {[%emt 0:01:27]} 8. f4 {[%emt 0:02:02]} c5 {[%emt 0:09:11]} 9. e5 {[%emt 0:04:27] [#]} a6 $146 {[%emt 0:12:52] Prevents Nb5.} ({Predecessor:} 9... c4 10. Be2 Nf5 11. Nf3 Bb6 12. Bc1 f6 13. g4 Nxd4 14. Nxd4 fxe5 15. Nf3 e4 {½-½ (31) Alonso Gonzalez,C (2422)-Voveris,S (2388) ICCF email 2017}) 10. Nf3 {[%emt 0:03:15][%cal Ob2b4]} cxd4 {[%emt 0:02:42]} 11. Nxd4 {[%emt 0:08:56]} Nc5 {[%emt 0:01:32]} 12. Be2 {[%emt 0:07:43] [#] Black must now prevent b4.} Bb6 {[%emt 0:01:45][%cal Oc5a4]} 13. Be3 {[%emt 0:02:00]} Bd7 {[%emt 0:00:32]} 14. Qd2 {[%emt 0:12:31]} Na4 {[%emt 0:05:38]} 15. Nxa4 {[%emt 0:04:58]} Bxa4 {[%emt 0:00:06]} 16. O-O {[%emt 0:02:47]} Rc8 {[%emt 0:08:17]} 17. c3 {[%emt 0:01:13]} Bxd4 {[%emt 0:05:36]} 18. Bxd4 {[%emt 0:06:24]} Bb5 {[%emt 0:00:59]} 19. Bxb5+ {[%emt 0:01:22]} axb5 {[%emt 0:00:03]} 20. Qe2 {[%emt 0:02:28]} Qd7 {[%emt 0:00:35]} 21. Rf3 {[%emt 0:02:01]} Nf5 {[%emt 0:06:42]} 22. Rd1 {[%emt 0:08:35]} Nxd4 {[%emt 0:00:30]} 23. cxd4 {[%emt 0:00:30]} O-O {[%emt 0:01:05]} 24. g4 {[%emt 0:01:32]} f5 {[%emt 0:02:52]} 25. exf6 {[%emt 0:03:48]} Rxf6 {[%emt 0:00:00][%cal Oe6e5]} 26. g5 {[%emt 0:02:49]} Rff8 {[%emt 0:01:58]} 27. Re1 {[%emt 0:00:55]} Rce8 {[%emt 0:02:33]} 28. Kg2 {[%emt 0:04:28]} ({White should play} 28. Kf2 $14) 28... Rf5 {[%emt 0:11:53]} ({Black should try} 28... e5 $11 29. fxe5 (29. dxe5 Qg4+ 30. Rg3 Qxf4 $11) 29... Qg4+ 30. Rg3 Qxd4) 29. h4 Qc6 {[%emt 0:11:21]} 30. Kg3 {[%emt 0:04:01]} Qd7 {[%emt 0:00:00]} 31. Qe3 Qf7 {[%emt 0:00:43]} 32. Rc1 {[%emt 0:04:48]} Rf8 {[%emt 0:00:00]} 33. Rc5 {[%emt 0:00:30][%cal Bc1c5,Bc5b5,Bb5b3,Bb3g3][%mdl 32] White is more active.} Qd7 {[%emt 0:00:00]} 34. Qc1 {Threatening Rc7.} R5f7 {[%emt 0:04:57]} 35. Qf1 {[%emt 0:02:56]} (35. Qe1 $5 {[%cal Re1e5]}) 35... h5 {[%emt 0:05:57][%cal Oe6e5] [#] And now ...e5! would win. The position is equal.} 36. gxh6 {[%emt 0:04:29]} (36. Rxb5 $2 e5 37. Rbb3 Rxf4 38. Rxf4 Rxf4 $19) 36... gxh6 37. Rxb5 {[%emt 0:00:00]} Qe7 {[%emt 0:00:00]} 38. Rbb3 {[%emt 0:00:00]} Qf6 {[%emt 0:00:00]} 39. Qf2 {[%emt 0:00:00]} Kh8 {[%emt 0:00:00]} 40. Kh3 {[%emt 0:00:00]} ({Much worse is} 40. Kh2 Rg7 $15) 40... Rg8 {[%emt 0:00:00]} 41. Rg3 {[%emt 0:25:18]} ({But not} 41. Kh2 Rg4 42. Kh3 Qf5 $17) 41... Qf5+ {[%emt 0:07:59]} ({Resist} 41... Qxf4 42. Qxf4 Rxf4 43. Rxb7 $16) 42. Kh2 {[%emt 0:00:02]} Rxg3 {[%emt 0:02:45]} 43. Rxg3 {[%emt 0:01:27]} Qxf4 {[%emt 0:00:43]} 44. Qxf4 {[%emt 0:02:56] Weighted Error Value: White=0.07 (flawless) /Black=0.08 (flawless)} 1/2-1/2

[Event "44th Chess Olympiad Open 2022"]
[Site "Chennai"]
[Date "2022.08.09"]
[Round "11.2"]
[White "Sargissian, Gabriel"]
[Black "Shirov, Alexei"]
[Result "1-0"]
[ECO "D23"]
[WhiteElo "2698"]
[BlackElo "2704"]
[Annotator "TA"]
[PlyCount "97"]
[EventDate "2022.07.29"]
[EventType "team-tourn"]
[EventCountry "IND"]
[SourceTitle "playchess.com"]
[Source "ChessBase"]
[SourceQuality "1"]
[WhiteTeam "Armenia"]
[BlackTeam "Spain"]
[WhiteTeamCountry "ARM"]
[BlackTeamCountry "ESP"]
[TimeControl "40/5400+30:1800+30"]

{[%evp 9,97,-7,8,0,0,10,27,14,14,16,26,21,22,28,22,22,17,16,32,0,8,12,235,252,239,222,416,397,518,356,319,291,299,287,290,259,289,229,229,216,216,219,249,247,249,252,250,248,239,228,301,291,301,300,331,300,333,300,300,300,324,326,330,328,355,349,354,349,463,432,427,397,453,443,602,589,600,594,735,733,1065,1065,1141,1191,6161,6137,4021,3086,1189,1033]} 1. d4 {[%emt 0:00:05]} d5 {[%emt 0:00:20]} 2. c4 {[%emt 0:00:30]} c6 {[%emt 0:00:06]} 3. Nf3 {[%emt 0:00:35]} Nf6 {[%emt 0:00:05]} 4. Qb3 {[%emt 0:00:36]} dxc4 {[%emt 0:22:20]} 5. Qxc4 {[%emt 0:00:53]} Bg4 {[%emt 0:00:34]} 6. Nc3 {[%emt 0:00:50] D23: Queen's Gambit Accepted: 3 Nf3 Nf6 sidelines.} Nbd7 {[%emt 0:01:32]} 7. Bf4 $1 {[%emt 0:00:31][%mdl 4] now scores much better than the old 7.e4.} Bxf3 {[%emt 0:08:09]} 8. gxf3 {[%emt 0:00:45] White has an edge.} Nb6 {[%emt 0:02:58]} 9. Qd3 {[%emt 0:01:15]} Nfd5 {[%emt 0:00:09]} 10. Nxd5 {[%emt 0:06:58]} Nxd5 {[%emt 0:02:48]} 11. Bd2 {[%emt 0:00:25]} e6 {[%emt 0:00:03]} 12. e4 {[%emt 0:06:19]} Nc7 {[%emt 0:12:42]} 13. O-O-O {[%emt 0:12:20]} Qh4 {[%emt 0:00:41]} 14. Be3 {[%emt 0:08:46]} O-O-O {[%emt 0:00:43] [#]} 15. Qd2 $146 {[%emt 0:00:47]} ({Predecessor:} 15. Kb1 Kb8 16. Qd2 Be7 17. Qa5 Rd7 18. Rg1 Rhd8 19. Rxg7 c5 20. Qa4 Qf6 21. Rg3 cxd4 {1-0 (51) Freeman,M (2513)-Serradimigni,R (2500) ICCF email 2015}) 15... g6 $2 {[%emt 0:17:33] Black cannot hold the game after this.} (15... Be7 $11 {and Black has nothing to worry.}) 16. Bg5 $18 {[%emt 0:05:30]} Qh5 {[%emt 0:00:21] [#]} 17. Be2 $1 {[%emt 0:03:22] Threatens to win with h4.} (17. Bxd8 Bh6 18. Bg5 Bxg5 $14) 17... Bb4 $2 {[%emt 0:06:41] [#]} (17... Qh3 18. Bxd8 Kxd8) 18. Qe3 $1 {[%emt 0:01:52] Black must now prevent f4.} ({Not} 18. Qxb4 Qxg5+ 19. Qd2 Qh4 $15) 18... e5 {[%emt 0:09:31]} 19. Bxd8 {[%emt 0:09:31]} Rxd8 {[%emt 0:00:07]} 20. dxe5 {[%emt 0:01:24]} Qxe5 {[%emt 0:00:05]} 21. Rxd8+ {[%emt 0:01:14]} Kxd8 {[%emt 0:00:07]} 22. Rd1+ {[%emt 0:00:31]} Ke7 {[%emt 0:00:04]} 23. f4 {[%emt 0:02:21]} ({Resist} 23. Qxa7 Qc5+ 24. Qxc5+ Bxc5 $18) 23... Qc5+ {[%emt 0:08:57]} 24. Kb1 {[%emt 0:00:20]} Qxe3 {[%emt 0:04:33]} 25. fxe3 {[%emt 0:00:17][%mdl 4096] Endgame KRB-KBN} Ne8 {[%emt 0:01:11]} 26. e5 {[%emt 0:04:38]} Bc5 {[%emt 0:00:20]} 27. Bg4 {[%emt 0:02:15] aiming for Rd7+.} f5 {[%emt 0:00:44]} 28. exf6+ $1 {[%emt 0:00:15]} Nxf6 {[%emt 0:00:04]} 29. Bf3 {[%emt 0:00:43]} h6 {[%emt 0:00:13]} 30. h4 {[%emt 0:06:01]} Ke6 {[%emt 0:00:40]} 31. Kc2 {[%emt 0:05:12]} h5 {[%emt 0:00:22]} 32. Kd3 {[%emt 0:01:22]} Be7 {[%emt 0:00:05]} 33. Rg1 {[%emt 0:02:55]} Kf7 {[%emt 0:00:04]} 34. Ke2 {[%emt 0:02:07]} Nd7 {[%emt 0:00:06]} 35. Be4 {[%emt 0:00:16]} Nf8 {[%emt 0:00:05]} 36. Rh1 {[%emt 0:00:08]} Nd7 {[%emt 0:01:17]} 37. Bc2 {[%emt 0:00:37]} ({But not} 37. Rg1 Nf8 38. Rh1 Kg7 $18) 37... Bf6 {[%emt 0:01:24]} 38. e4 {[%emt 0:03:12][%cal Be3e4,Be4e5][%mdl 32]} Bd4 {[%emt 0:00:04]} 39. e5 {[%emt 0:01:08]} Nf8 {[%emt 0:01:21]} 40. Kd3 {[%emt 0:01:31]} c5 {[%emt 0:00:24]} 41. Ke4 {[%emt 0:33:13] White is clearly winning.} b6 {[%emt 0:30:20]} 42. b4 {[%emt 0:01:46][%cal Bb2b4,Bb4b5][%mdl 32]} Ke7 {[%emt 0:00:12]} 43. Bb3 {[%emt 0:02:01]} Bf2 {[%emt 0:00:00]} 44. b5 {[%emt 0:00:00]} Nd7 {[%emt 0:00:00]} 45. Bc4 {[%emt 0:00:00]} Nf8 {[%emt 0:00:00]} 46. Rh3 {[%emt 0:00:00] Ra3 is the strong threat.} Be1 {[%emt 0:00:00]} 47. f5 {[%emt 0:00:00]} gxf5+ {[%emt 0:00:00]} 48. Kxf5 {[%emt 0:00:00] And now Ra3 would win.} Nd7 {[%emt 0:00:00]} 49. Ra3 {[%emt 0:00:00] Weighted Error Value: White=0.09 (flawless) /Black=0.41} 1-0

[Event "44th Chess Olympiad Open 2022"]
[Site "Chennai"]
[Date "2022.08.09"]
[Round "11.2"]
[White "Santos Latasa, Jaime"]
[Black "Hovhannisyan, Robert"]
[Result "1/2-1/2"]
[ECO "C54"]
[WhiteElo "2675"]
[BlackElo "2591"]
[Annotator "TA"]
[PlyCount "138"]
[EventDate "2022.07.29"]
[EventType "team-tourn"]
[EventCountry "IND"]
[SourceTitle "playchess.com"]
[Source "ChessBase"]
[SourceQuality "1"]
[WhiteTeam "Spain"]
[BlackTeam "Armenia"]
[WhiteTeamCountry "ESP"]
[BlackTeamCountry "ARM"]
[TimeControl "40/5400+30:1800+30"]

{[%evp 10,138,26,11,28,6,21,10,20,14,16,0,0,0,0,6,15,12,41,0,0,0,0,0,0,0,0,0,8,13,13,6,17,18,19,11,14,22,14,13,17,29,8,5,4,5,3,3,5,0,0,0,0,0,0,0,0,0,0,0,0,0,0,0,0,0,0,0,0,0,0,0,0,0,0,0,0,0,0,0,0,0,0,0,0,0,0,0,0,0,0,0,0,0,0,0,0,0,0,0,0,0,0,0,0,0,0,0,0,0,0,0,0,0,0,0,0,0,0,0,0,0,0,0,0,0,0,0,0,0,0]} 1. e4 {[%emt 0:00:03]} e5 {[%emt 0:00:07]} 2. Nf3 {[%emt 0:00:04]} Nc6 {[%emt 0:00:07]} 3. Bc4 {[%emt 0:00:09]} Bc5 {[%emt 0:00:14]} 4. O-O {[%emt 0:00:08]} Nf6 {[%emt 0:00:40]} 5. d3 {[%emt 0:00:05]} d6 {[%emt 0:00:32]} 6. c3 {[%emt 0:00:07]} a5 {[%emt 0:01:36] C54: Giuoco Piano: 4 c3 Nf6, main lines with 5 d4 and 5 d3.} 7. Re1 {[%emt 0:01:58]} O-O {[%emt 0:00:35]} 8. h3 {[%emt 0:00:05]} Be6 {[%emt 0:01:12]} 9. Bb5 {[%emt 0:00:27]} Ba7 {[%emt 0:00:34]} 10. Be3 {[%emt 0:00:19]} Bxe3 {[%emt 0:00:59]} 11. Rxe3 {[%emt 0:00:46]} Ne7 {[%emt 0:00:37]} 12. d4 {[%emt 0:00:07] [#]} c6 $146 {[%emt 0:00:55]} ({Predecessor:} 12... Ng6 13. Nbd2 c6 14. Bf1 a4 15. b4 axb3 16. axb3 b5 17. b4 Qb6 18. Re1 h6 {½-½ (30) Adams,M (2692)-Matlakov,M (2710) Budva 2019}) 13. Bf1 {[%emt 0:02:22]} h6 {[%emt 0:01:12]} 14. Nbd2 {[%emt 0:12:19]} Ng6 {[%emt 0:04:55]} 15. a4 {[%emt 0:00:41]} Qc7 {[%emt 0:02:41]} 16. Qc2 {[%emt 0:00:38]} Rad8 {[%emt 0:02:43]} 17. Rd1 {[%emt 0:02:52]} Rfe8 {[%emt 0:05:03]} 18. Ree1 {[%emt 0:01:18]} Nh7 {[%emt 0:16:23]} 19. dxe5 {[%emt 0:03:26]} dxe5 {[%emt 0:01:26]} 20. Nc4 {[%emt 0:04:12]} Ng5 {[%emt 0:06:02]} 21. Nxg5 {[%emt 0:01:21]} hxg5 {[%emt 0:00:06]} 22. g3 {[%emt 0:01:48]} Nf8 {[%emt 0:08:08]} 23. Qc1 {[%emt 0:03:03]} Rxd1 {[%emt 0:08:32]} 24. Rxd1 {[%emt 0:00:40]} Bxc4 {[%emt 0:00:10]} 25. Bxc4 {[%emt 0:00:07]} Rd8 {[%emt 0:00:14]} 26. Kg2 {[%emt 0:02:19] The position is equal.} Rxd1 {[%emt 0:14:45]} 27. Qxd1 $11 {[%emt 0:00:23][%mdl 4096] Endgame KQB-KQN} Nd7 {[%emt 0:00:42]} 28. b4 {[%emt 0:07:22]} Nf6 {[%emt 0:03:05]} 29. f3 {[%emt 0:07:18]} b5 {[%emt 0:07:41]} 30. axb5 {[%emt 0:02:44]} cxb5 {[%emt 0:00:06]} 31. Bxb5 {[%emt 0:00:07]} Qxc3 {[%emt 0:00:40]} 32. bxa5 {[%emt 0:00:14]} ({Of course not} 32. Qd8+ Kh7 33. Qxa5 Qd2+ 34. Kg1 Nh5 $17) 32... Qxa5 {[%emt 0:00:13]} 33. Bc4 {[%emt 0:00:27]} g6 {[%emt 0:03:01]} 34. Qc1 {[%emt 0:02:36]} Nh7 {[%emt 0:02:34]} 35. Bd5 {[%emt 0:02:58]} Kg7 {[%emt 0:01:45]} 36. Qb2 {[%emt 0:00:19]} Qc7 {[%emt 0:01:06]} 37. Qd2 {[%emt 0:00:24]} Qe7 {[%emt 0:01:35]} 38. Ba2 {[%emt 0:00:42]} Qa7 {[%emt 0:01:01]} 39. Bc4 {[%emt 0:01:25]} Qc5 {[%emt 0:00:52]} 40. Bd5 {[%emt 0:00:26]} Qc7 {[%emt 0:00:56]} 41. Bb3 {[%emt 0:30:23]} Qb7 {[%emt 0:32:28]} 42. Bd5 {[%emt 0:00:12]} Qa6 {[%emt 0:01:48]} 43. Kf2 {[%emt 0:01:59]} Qb6+ {[%emt 0:00:00]} 44. Kg2 {[%emt 0:00:00]} Qb5 {[%emt 0:00:00]} 45. Kf2 {[%emt 0:00:00]} Qa6 {[%emt 0:00:00]} 46. Qb2 {[%emt 0:00:00] Active counter play!} Qa7+ {[%emt 0:00:00]} 47. Kg2 {[%emt 0:00:00]} Qe7 {[%emt 0:00:00]} 48. Qd2 {[%emt 0:00:00]} Nf6 {[%emt 0:00:00]} 49. Ba2 {[%emt 0:00:00]} Nh5 {[%emt 0:00:00]} 50. Bd5 {[%emt 0:00:00]} Qd8 {[%emt 0:00:00]} 51. Qb2 {[%emt 0:00:00]} Qc7 {[%emt 0:00:00]} 52. Qd2 {[%emt 0:00:00]} Qe7 {[%emt 0:00:00]} 53. Qb2 {[%emt 0:00:00]} Qc7 {[%emt 0:00:00]} 54. Qd2 {[%emt 0:00:00]} Qd8 {[%emt 0:00:00]} 55. Qb2 {[%emt 0:00:00]} Qe7 {[%emt 0:00:00]} 56. Qd2 {[%emt 0:00:00]} Nf6 {[%emt 0:00:00]} 57. Ba2 {[%emt 0:00:00]} Ne8 {[%emt 0:00:00]} 58. Bd5 {[%emt 0:00:00]} Nc7 {[%emt 0:00:00]} 59. Bc4 {[%emt 0:00:00]} Qc5 {[%emt 0:00:00]} 60. Qa2 {[%emt 0:00:00]} Qe7 {[%emt 0:01:13]} 61. Qd2 {[%emt 0:00:00]} Ne8 {[%emt 0:00:00]} 62. Bd5 {[%emt 0:00:00]} Nd6 {[%emt 0:00:00]} 63. Qb2 {[%emt 0:00:00]} Kh7 {[%emt 0:00:00]} 64. Qb6 {[%emt 0:00:00]} Ne8 {[%emt 0:00:00]} 65. Qb3 {[%emt 0:00:00]} Kg8 {[%emt 0:02:44]} 66. Qb8 {[%emt 0:00:00]} Kg7 {[%emt 0:00:00]} 67. Qb2 {[%emt 0:00:00]} Nf6 {[%emt 0:00:00]} 68. Qd2 {[%emt 0:00:00]} Nh5 {[%emt 0:00:00]} 69. Qb2 {[%emt 0:00:00]} Nf6 {[%emt 0:00:00] An interesting draw.  Weighted Error Value: White=0.02 (flawless) /Black=0.02 (flawless)} 1/2-1/2

[Event "44th Chess Olympiad Open 2022"]
[Site "Chennai"]
[Date "2022.08.09"]
[Round "11.2"]
[White "Petrosyan, Manuel"]
[Black "Anton Guijarro, David"]
[Result "1/2-1/2"]
[ECO "D02"]
[WhiteElo "2610"]
[BlackElo "2667"]
[Annotator "TA"]
[PlyCount "67"]
[EventDate "2022.07.29"]
[EventType "team-tourn"]
[EventCountry "IND"]
[SourceTitle "playchess.com"]
[Source "ChessBase"]
[SourceQuality "1"]
[WhiteTeam "Armenia"]
[BlackTeam "Spain"]
[WhiteTeamCountry "ARM"]
[BlackTeamCountry "ESP"]
[TimeControl "40/5400+30:1800+30"]

{[%evp 9,67,0,0,0,0,0,0,0,0,0,2,-8,-6,0,-3,-7,-5,-11,31,42,48,0,0,0,0,0,0,0,0,0,0,0,28,22,32,13,18,14,25,0,0,0,38,46,29,18,27,19,29,14,19,0,0,0,0,0,0,0,0,0]} 1. Nf3 {[%emt 0:02:11]} d5 {[%emt 0:01:07]} 2. d4 {[%emt 0:00:39]} Nf6 {[%emt 0:00:34]} 3. Bf4 {[%emt 0:00:23]} e6 {[%emt 0:01:01]} 4. e3 {[%emt 0:00:46]} Bd6 {[%emt 0:00:27]} 5. Nbd2 {[%emt 0:00:47]} O-O {[%emt 0:03:09]} 6. Bd3 {[%emt 0:00:36] D02: 1 d4 d5 2 Nf3 sidelines, including 2...Nf6 3 g3 and 2...Nf6 3 Bf4.} Bxf4 {[%emt 0:02:25]} 7. exf4 {[%emt 0:00:05]} b6 {[%emt 0:00:06]} 8. O-O {[%emt 0:00:26]} c5 {[%emt 0:02:31] [#]} 9. Re1 $146 {[%emt 0:16:08]} ({Predecessor:} 9. c3 Ba6 10. Bxa6 Nxa6 11. Qe2 Nb8 12. Ne5 Qc7 13. Ndf3 Nc6 14. Rad1 cxd4 15. Nxc6 Qxc6 16. Nxd4 {1-0 (54) Grachev,B (2619)-Matlakov,M (2688) Tornelo INT 2021}) 9... Ba6 {[%emt 0:08:01]} 10. Ne5 {[%emt 0:02:04]} Bxd3 {[%emt 0:07:53]} 11. cxd3 {[%emt 0:00:24]} Nfd7 {[%emt 0:00:44]} 12. Rc1 {[%emt 0:09:19][%cal Ba1c1,Bc1c4,Bc4d4][%mdl 32]} Nxe5 {[%emt 0:04:19]} 13. fxe5 {[%emt 0:00:05]} Nc6 {[%emt 0:06:16]} 14. dxc5 {[%emt 0:06:36]} bxc5 {[%emt 0:00:19]} 15. Nb3 {[%emt 0:00:26] Inhibits Qa5.} (15. Rxc5 $14 Qb6 16. Rc3) 15... c4 $11 {[%emt 0:22:16]} 16. dxc4 {[%emt 0:05:51]} dxc4 {[%emt 0:00:06]} 17. Rxc4 {[%emt 0:02:20]} Nxe5 {[%emt 0:00:37]} 18. Rd4 {[%emt 0:00:12]} Qb8 {[%emt 0:04:24]} 19. Na5 {[%emt 0:09:53]} Qc7 {[%emt 0:05:48]} 20. b4 {[%emt 0:00:41]} Rac8 {[%emt 0:03:27]} 21. h3 {[%emt 0:01:18]} h6 {[%emt 0:00:28]} 22. a3 {[%emt 0:02:59]} Qb8 {[%emt 0:02:05]} 23. Qd2 {[%emt 0:03:33]} Nc6 {[%emt 0:01:17]} 24. Rg4 {[%emt 0:06:23] [#] Threatening mate with Qxh6.} Ne5 {[%emt 0:06:16]} 25. Rd4 {[%emt 0:00:10]} Nc6 {[%emt 0:00:26]} 26. Nxc6 {[%emt 0:08:32]} Rxc6 {[%emt 0:00:05]} 27. Rd1 {[%emt 0:00:31]} a6 {[%emt 0:01:11]} 28. Rd6 {[%emt 0:04:02]} Rfc8 {[%emt 0:02:29]} 29. a4 {[%emt 0:03:08]} Rc4 {[%emt 0:02:45] The position is equal.} 30. Rd8+ {[%emt 0:01:44]} Rxd8 {[%emt 0:00:14]} 31. Qxd8+ {[%emt 0:00:05]} Qxd8 {[%emt 0:00:04]} 32. Rxd8+ {[%emt 0:00:05]} Kh7 {[%emt 0:00:04]} 33. Rb8 {[%emt 0:00:08]} a5 {[%emt 0:00:45]} 34. bxa5 {[%emt 0:00:07] Weighted Error Value: White=0.07 (flawless) /Black=0.03 (flawless)} 1/2-1/2

[Event "44th Chess Olympiad Open 2022"]
[Site "Chennai"]
[Date "2022.08.09"]
[Round "11.3"]
[White "Abdusattorov, Nodirbek"]
[Black "Giri, Anish"]
[Result "1/2-1/2"]
[ECO "B90"]
[WhiteElo "2688"]
[BlackElo "2760"]
[Annotator "TA"]
[PlyCount "91"]
[EventDate "2022.07.29"]
[EventType "team-tourn"]
[EventCountry "IND"]
[SourceTitle "playchess.com"]
[Source "ChessBase"]
[SourceQuality "1"]
[WhiteTeam "Uzbekistan"]
[BlackTeam "Netherlands"]
[WhiteTeamCountry "UZB"]
[BlackTeamCountry "NED"]
[TimeControl "40/5400+30:1800+30"]

{[%evp 10,91,25,5,27,6,14,8,25,33,20,41,36,0,0,0,0,0,0,0,0,0,0,-31,26,12,61,69,69,58,52,19,40,19,70,64,63,61,56,47,61,62,52,29,81,91,85,66,106,110,102,108,122,116,110,60,61,16,0,1,34,22,22,29,47,49,43,8,8,0,0,0,8,8,8,0,0,0,0,0,0,0,0,0]} 1. e4 {[%emt 0:00:20]} c5 {[%emt 0:00:05]} 2. Nf3 {[%emt 0:00:14]} d6 {[%emt 0:00:07]} 3. d4 {[%emt 0:00:17]} cxd4 {[%emt 0:00:03]} 4. Nxd4 {[%emt 0:00:06]} Nf6 {[%emt 0:00:05]} 5. Nc3 {[%emt 0:00:38]} a6 {[%emt 0:00:06]} 6. Rg1 {[%emt 0:00:37]} h5 {[%emt 0:00:37] Against g4. B90: Sicilian Najdorf: Unusual White 6th moves, 6 Be3 Ng4 and 6 Be3 e5.} 7. h3 {[%emt 0:00:09]} g6 {[%emt 0:01:32]} 8. Be3 {[%emt 0:00:07] [#]} Bg7 $146 {[%emt 0:01:58]} ({Predecessor:} 8... Nc6 9. Qd2 Nxd4 10. Bxd4 e5 11. Be3 b5 12. f3 Be6 13. O-O-O Rc8 14. Kb1 h4 {1-0 (58) Dominguez Perez,L (2756)-Robson,R (2681) Saint Louis 2022}) 9. Qe2 {[%emt 0:00:07]} b5 {[%emt 0:06:38][%cal Bb7b5,Bb5b4][%mdl 32]} 10. O-O-O {[%emt 0:00:10][%cal Oe4e5] [#] aiming for e5!} Nbd7 {[%emt 0:05:32]} 11. g4 {[%emt 0:02:28]} Bb7 {[%emt 0:06:35]} 12. Bg2 {[%emt 0:02:31][%cal Oe4e5] Strongly threatening e5!} b4 $1 {[%emt 0:03:51]} 13. Nd5 {[%emt 0:00:04]} e5 $1 {[%emt 0:02:27]} 14. Nxf6+ {[%emt 0:05:19]} Nxf6 {[%emt 0:00:24]} 15. Nb3 {[%emt 0:00:34]} Qc7 $1 {[%emt 0:01:43]} (15... Bxe4 $2 16. g5 Bxg2 17. gxf6 Qxf6 18. Rxg2 $18) (15... Nxe4 $2 16. Nd2 Nc3 17. bxc3 Bxg2 18. Nc4 $18) 16. gxh5 {[%emt 0:04:28]} Nxh5 {[%emt 0:03:22]} (16... Rxh5 $15 17. Qd3 a5) 17. Qd2 $1 $11 {[%emt 0:13:05][%csl LRb4,LRd6]} Rc8 {[%emt 0:04:20]} (17... Nf4 $11 {might be stronger.} 18. Bxf4 exf4 19. Qxb4 Rc8) 18. Kb1 $1 $14 {[%emt 0:00:08]} Nf4 {[%emt 0:02:58]} 19. Bf3 {[%emt 0:01:02]} O-O {[%emt 0:05:03]} (19... Rxh3 $2 20. Bg4 Bxe4 21. Bxc8 (21. Bxf4 $2 Bxc2+ 22. Ka1 Rxb3 $19) 21... Qxc8 22. Bxf4 exf4 23. Rge1 $18) 20. Qxb4 {[%emt 0:03:14] Hoping for c3.} d5 {[%emt 0:05:51]} 21. c3 {[%emt 0:13:26] [#] Bxf4 is the strong threat. Active counter play!} dxe4 {[%emt 0:08:17]} (21... d4 $1 $11 22. cxd4 (22. Bxf4 dxc3 23. Qxc3 Qxc3 $17) 22... exd4 23. Nxd4 Nxh3) 22. Bxe4 {[%emt 0:00:33]} Bxe4+ {[%emt 0:00:04]} 23. Qxe4 {[%emt 0:00:07]} Nxh3 {[%emt 0:00:05]} 24. Rge1 {[%emt 0:13:41]} Nf4 {[%emt 0:04:06]} 25. Nc5 {[%emt 0:00:09]} Qc6 {[%emt 0:01:22]} 26. Bxf4 {[%emt 0:05:15]} exf4 {[%emt 0:00:20]} (26... Qxe4+ $11 {remains equal.} 27. Rxe4 (27. Nxe4 exf4 28. Kc2 Rfe8 $14) 27... Rxc5) 27. Qxc6 $16 {[%emt 0:00:02]} Rxc6 {[%emt 0:00:06]} 28. Rd5 {[%emt 0:00:03]} Rfc8 {[%emt 0:03:43]} 29. Nd3 {[%emt 0:02:57]} Bf6 {[%emt 0:02:00]} 30. Rg1 {[%emt 0:05:05]} ({Of course not} 30. Nxf4 $6 Rb6 $11) 30... Rb6 {[%emt 0:05:05]} 31. Kc2 {[%emt 0:00:49]} Rc4 {[%emt 0:00:18]} 32. Re1 {[%emt 0:04:41] Against Re4} (32. Rf5 $16) 32... Kg7 $14 {[%emt 0:01:39]} 33. Rc5 {[%emt 0:00:29]} Rxc5 {[%emt 0:02:31]} (33... Rxb2+ $2 34. Kxb2 Bxc3+ 35. Kb3 Rxc5 36. Rc1 $16) 34. Nxc5 $11 {[%emt 0:00:01][%mdl 4096] Endgame KRB-KRN} Bh4 {[%emt 0:00:50]} 35. Nd3 {[%emt 0:00:16]} g5 {[%emt 0:00:08]} 36. c4 {[%emt 0:01:11][%cal Bc3c4,Bc4c5][%mdl 32]} Kf6 {[%emt 0:04:15]} 37. b4 {[%emt 0:01:23]} f3 {[%emt 0:08:30]} 38. c5 {[%emt 0:00:35]} Re6 {[%emt 0:00:20] Threatens to win with ...Rxe1. The position is equal.} 39. Kd1 {[%emt 0:01:31]} g4 {[%emt 0:04:28]} 40. a4 {[%emt 0:00:09]} g3 {[%emt 0:06:17]} 41. fxg3 {[%emt 0:30:12]} Bxg3 {[%emt 0:06:14]} 42. Rf1 {[%emt 0:00:00]} Re3 {[%emt 0:00:06]} 43. Kd2 {[%emt 0:00:00]} Re2+ {[%emt 0:00:03]} 44. Kd1 {[%emt 0:00:00]} Re3 {[%emt 0:00:11]} 45. Kd2 {[%emt 0:00:00]} Re2+ {[%emt 0:00:02]} 46. Kd1 {[%emt 0:00:00] Weighted Error Value: White=0.08 (flawless) /Black=0.11 (very precise)} 1/2-1/2